[Event "Lliga Catalana DH 2023"]
[Site "Catalonia"]
[Date "2023.01.24"]
[Round "2.5"]
[White "Pi Pares, Albert"]
[Black "Sabria Batlle, Pol"]
[Result "0-1"]
[ECO "D02"]
[WhiteElo "2252"]
[BlackElo "2298"]
[Annotator "TA"]
[PlyCount "88"]
[EventDate "2023.01.24"]
[EventType "team-tourn"]
[EventCountry "ESP"]
[SourceTitle "playchess.com"]
[Source "ChessBase"]
[SourceQuality "1"]
[TimeControl "40/5400+30:1800+30"]

{[%evp 12,88,7,14,12,25,25,11,19,14,1,0,0,0,0,0,0,0,0,0,0,0,0,0,0,0,0,-16,0,0,0,0,0,0,0,0,0,-24,-26,-31,-33,-57,-60,-62,-62,-60,-28,-42,-19,-22,-14,-23,-8,-22,-27,-27,-20,-33,-32,-57,-45,-33,0,-7,0,-54,-42,-119,-113,-115,-104,-264,-286,-493,-487,-716,-731,-675,-656]} 1. d4 {[%emt 0:00:03]} Nf6 {[%emt 0:22:24]} 2. Bf4 {[%emt 0:00:12]} e6 {[%emt 0:01:05]} 3. e3 {[%emt 0:00:14]} c5 {[%emt 0:00:04]} 4. Nd2 {[%emt 0:00:54]} Nc6 {[%emt 0:01:12]} 5. c3 {[%emt 0:01:15]} Be7 {[%emt 0:00:08]} 6. h3 {[%emt 0:02:45]} d5 {[%emt 0:00:35]} 7. Ngf3 {[%emt 0:01:20]} Bd6 {[%emt 0:00:04] D02: 1 d4 d5 2 Nf3 sidelines, including 2...Nf6 3 g3 and 2...Nf6 3 Bf4.} 8. dxc5 {[%emt 0:06:32]} Bxc5 {[%emt 0:01:24]} 9. Bd3 {[%emt 0:02:42]} Bd6 {[%emt 0:13:25] The position is equal.} 10. Bxd6 {[%emt 0:01:53]} Qxd6 {[%emt 0:00:24]} 11. e4 {[%emt 0:04:56]} O-O {[%emt 0:01:25]} 12. O-O {[%emt 0:06:10]} Rd8 {[%emt 0:00:04]} 13. Bc2 {[%emt 0:04:41] [#]} e5 $146 {[%emt 0:04:51]} ({Predecessor:} 13... dxe4 14. Nxe4 Qe7 15. Qe2 Bd7 16. Rad1 Be8 17. Nxf6+ Qxf6 18. h4 g6 19. Qe3 h5 {1-0 So,W (2778)-Caruana,F (2816) Paris GCT rapid 2018 (1)}) 14. Re1 {[%emt 0:07:49]} d4 {[%emt 0:01:56]} 15. cxd4 {[%emt 0:02:05]} Nxd4 {[%emt 0:00:22]} 16. Nxd4 {[%emt 0:12:47]} Qxd4 {[%emt 0:00:06]} 17. Nf3 {[%emt 0:05:58]} Qb6 {[%emt 0:00:14]} 18. Qe2 {[%emt 0:04:21]} Qxb2 {[%emt 0:01:09]} 19. Ng5 {[%emt 0:12:39][%cal Og5f7]} Be6 {[%emt 0:04:47]} 20. Nxe6 $1 {[%emt 0:04:02]} fxe6 {[%emt 0:00:07]} 21. Bb3 {[%emt 0:01:11]} Qxe2 {[%emt 0:00:06]} 22. Bxe6+ {[%emt 0:00:07]} Kf8 {[%emt 0:00:02]} 23. Rxe2 {[%emt 0:00:06]} Ke7 {[%emt 0:00:08]} 24. Bb3 {[%emt 0:00:19]} Rac8 {[%emt 0:00:18]} 25. Kf1 {[%emt 0:03:47]} Rd4 {[%emt 0:00:28]} 26. Rae1 {[%emt 0:06:09]} Rc3 {[%emt 0:02:31]} 27. Rc2 {[%emt 0:02:26]} Rxc2 {[%emt 0:06:03]} ({Don't take} 27... Nxe4 28. Rxe4 Rxb3 29. Rxe5+ Kf6 30. axb3 $14) 28. Bxc2 $15 {[%emt 0:00:03][%mdl 4096] Endgame KRB-KRN} Rc4 {[%emt 0:00:09]} 29. Bd3 {[%emt 0:02:51]} Rc3 {[%emt 0:00:28]} 30. Ke2 {[%emt 0:00:25]} Ra3 {[%emt 0:00:19]} 31. Bb1 {[%emt 0:00:09]} Ne8 {[%emt 0:08:46]} 32. Rd1 {[%emt 0:01:46]} Nc7 {[%emt 0:00:23]} 33. Rd3 {[%emt 0:00:19]} Ra4 {[%emt 0:00:22]} 34. Rb3 {[%emt 0:02:27]} b6 {[%emt 0:00:03]} 35. g3 {[%emt 0:00:25]} Ne6 {[%emt 0:00:10] Strongly threatening ...Nd4+.} 36. Ke3 {[%emt 0:00:13]} Rc4 {[%emt 0:09:23]} 37. Bd3 {[%emt 0:01:15]} Rc1 {[%emt 0:00:10]} 38. Ra3 {[%emt 0:00:25]} (38. Kd2 $11 Rc8 39. Rc3 Rxc3 40. Kxc3) 38... a5 {[%emt 0:00:19]} 39. Rb3 {[%emt 0:00:02]} (39. Kd2 $15 Ra1 40. Bc4) 39... Nc5 $1 $17 {[%emt 0:00:57]} 40. Ra3 {[%emt 0:00:01] [#]} (40. Rxb6 $2 {is the wrong capture.} Rc3 41. Rb5 Nxd3 $19) 40... g5 $1 {[%emt 0:00:22][%cal Bg7g5,Bg5f4][%mdl 32] Black is more active.} 41. f4 $2 {[%emt 0:31:00] [#] Loses the game.} (41. Bb5 $17) 41... gxf4+ $1 $19 {[%emt 0:30:18]} 42. gxf4 $2 {[%emt 0:00:01]} (42. Kf3) 42... Rh1 {[%emt 0:00:12] Black is clearly winning.} 43. Be2 {[%emt 0:00:44]} (43. h4 $142 exf4+ 44. Kxf4) 43... Rxh3+ {[%emt 0:01:12]} 44. Bf3 {[%emt 0:00:00]} Ne6 {[%emt 0:00:43] Weighted Error Value: White=0.24 (precise) /Black=0.03 (flawless)} 0-1

[Event "Lliga Catalana DH 2023"]
[Site "Catalonia"]
[Date "2023.01.28"]
[Round "2.6"]
[White "Lorenzo De La Riva, Lazaro"]
[Black "Alvarez Albiol, Victor"]
[Result "1/2-1/2"]
[ECO "E52"]
[WhiteElo "2420"]
[BlackElo "2195"]
[Annotator "TA"]
[PlyCount "116"]
[EventDate "2023.01.24"]
[EventType "team-tourn"]
[EventCountry "ESP"]
[SourceTitle "playchess.com"]
[Source "ChessBase"]
[SourceQuality "1"]
[TimeControl "40/5400+30:1800+30"]

{[%evp 18,116,4,0,25,0,32,32,52,35,33,46,42,47,59,49,98,52,65,0,0,0,13,18,12,16,50,28,11,33,81,28,21,22,18,14,11,21,22,13,13,0,13,0,0,-12,4,-20,-20,-35,-7,-6,0,0,0,0,-8,-8,-8,-8,0,0,0,0,0,0,23,-63,-49,-45,-50,-57,-49,-76,-46,-56,-13,-20,39,13,12,21,119,67,67,-2,-1,-10,-8,-21,0,0,0,0,0,0,0,0,0,0,8]} 1. d4 Nf6 2. c4 e6 3. Nc3 Bb4 4. e3 O-O 5. Bd2 d5 6. Nf3 b6 7. cxd5 exd5 8. Bd3 Bb7 9. O-O Nbd7 10. Rc1 a6 {E52: Nimzo-Indian: Rubinstein: 4...0-0 5 Nf3 d5 6 Bd3 b6.} 11. Ne5 Re8 12. f4 c5 {White is slightly better.} 13. Be1 cxd4 14. exd4 Bxc3 {[#]} 15. Rxc3 $146 {Black must now prevent Bh4.} ({Predecessor:} 15. Bxc3 Ne4 16. Qb3 Ndf6 17. Ba5 bxa5 18. Qxb7 Re7 19. Qc6 Re6 20. Qc7 Qe8 21. Qxa5 {1-0 Jimenez Ruano,A (2262)-Hernandez,C (2374) Barcelona IM 16th 2021 (1)}) 15... Ne4 16. Qh5 Re7 (16... g6 $14 17. Qh6 Nxc3) 17. Bxe4 (17. Bh4 $16 f6 18. Nc6 Bxc6 19. Rxc6) 17... dxe4 $14 18. Bh4 {White is much more active. The black rooks are badly placed.} ({Better is} 18. Rg3 $14) 18... f6 $11 19. Rd1 Qe8 (19... fxe5 $2 20. dxe5 Qe8 21. Qxe8+ Rexe8 22. Rxd7 $18) 20. Qxe8+ (20. Qg4 {is interesting.} Bd5 21. b3 Rd8 22. Nc4) 20... Raxe8 {Black is weak on the dark squares} 21. Nc4 Rc8 ({Resist} 21... e3 22. Nd6 Rb8 23. Rc7 $16) 22. Nd6 {[%csl LRb7,LRc8]} Rxc3 23. bxc3 {[%cal Bb2c3,Bc3c4,Bc4c5][%mdl 32]} Bd5 (23... Ba8 $14 {deserves consideration.}) 24. Nf5 (24. c4 $16 Bf7 25. Kf2) 24... Re8 $1 25. Ne3 {Against b5} Bf7 26. c4 Rc8 27. Rc1 b5 28. c5 {next Be1 is good for White.} Nb6 $1 29. Be1 Nd5 (29... Bxa2 $2 30. cxb6 Rb8 31. Ra1 $18) 30. Nxd5 Bxd5 {[%mdl 4096] Endgame KRB-KRB} 31. Kf2 Kf7 {[%cal Of6f5]} 32. Ke3 f5 33. a3 h6 34. Ba5 g5 35. g4 fxg4 36. fxg5 hxg5 37. Rg1 Rh8 38. Bc7 Rh3+ 39. Bg3 Ke6 40. Rf1 Rh7 41. Rf8 Rf7 42. Re8+ (42. Rd8 $1 $11 Rd7 43. Re8+ Kf7 44. Rb8) 42... Kd7 $15 43. Re5 {[%csl LRd5,LRg5]} Rf3+ 44. Kd2 Rd3+ 45. Ke1 Rxd4 {Threatens to win with ...Rd3.} (45... Kc6 {keeps more tension.} 46. Rxg5 e3 47. Rg6+ Kb7) 46. Rxg5 a5 (46... Rd3 $5 {[%cal Rd7c6]} 47. Rg6 Bc6 $17) 47. Rg6 b4 (47... Rd3 $11) 48. Rd6+ Ke7 49. axb4 axb4 {[#]} (49... a4 $1 $11) 50. Bh4+ (50. c6 $1 $16 {[%cal Rc6c7] c7 would be deadly.} Rd3 51. c7) 50... Kf7 $14 51. Rf6+ (51. c6 $14) 51... Ke8 $11 {The position is equal.} 52. Rb6 (52. Rd6 {is more complex.} b3 53. Bf6 b2 54. Rb6) 52... Rc4 53. Bf2 b3 54. Rxb3 Rc1+ 55. Kd2 {[#] And now Rb8+ would win.} Bxb3 56. Kxc1 Kd7 57. Kd2 Kc6 58. Ke3 Kd5 {Weighted Error Value: White=0.13 (very precise) /Black=0.12 (very precise)} 1/2-1/2

[Event "Lliga Catalana DH 2023"]
[Site "Catalonia"]
[Date "2023.01.24"]
[Round "2.6"]
[White "Triadu Cassa, Jordi"]
[Black "Banos, Oscar"]
[Result "1-0"]
[ECO "B33"]
[WhiteElo "2195"]
[BlackElo "2198"]
[Annotator "TA"]
[PlyCount "139"]
[EventDate "2023.01.24"]
[EventType "team-tourn"]
[EventCountry "ESP"]
[SourceTitle "playchess.com"]
[Source "ChessBase"]
[SourceQuality "1"]
[TimeControl "40/5400+30:1800+30"]

{[%evp 20,139,12,6,11,4,9,8,18,19,31,21,44,24,18,11,23,19,18,23,29,9,29,29,26,29,55,34,23,38,35,40,58,66,68,50,41,37,32,33,41,38,38,39,46,33,68,75,109,109,110,108,110,101,103,101,252,238,237,241,239,238,234,234,234,206,168,159,237,141,275,257,402,402,402,388,387,395,395,395,387,387,387,227,231,238,238,238,238,238,245,251,251,251,299,230,362,316,364,360,356,347,335,304,253,239,395,374,1085,1085,29978,29980,29980,29980,29980,29981,29981,29983,29984,29985,29985,29986]} 1. e4 {[%emt 0:00:27]} c5 {[%emt 0:00:09]} 2. Nf3 {[%emt 0:00:05][%cal Bg1f3,Bf3d4,Bd4b5,Bb5a3,Ba3c2][%mdl 32]} Nc6 {[%emt 0:00:14]} 3. d4 {[%emt 0:00:05]} cxd4 {[%emt 0:00:07]} 4. Nxd4 {[%emt 0:00:04]} Nf6 {[%emt 0:00:14]} 5. Nc3 {[%emt 0:00:06]} e5 {[%emt 0:00:10]} 6. Ndb5 {[%emt 0:00:08]} d6 {[%emt 0:00:15]} 7. Bg5 {[%emt 0:00:06]} a6 {[%emt 0:00:11]} 8. Na3 {[%emt 0:00:04]} b5 {[%emt 0:00:12]} 9. Nd5 {[%emt 0:00:14]} Be7 {[%emt 0:00:25]} 10. Bxf6 {[%emt 0:00:05]} Bxf6 {[%emt 0:00:09]} 11. c4 {[%emt 0:00:03]} b4 {[%emt 0:00:41] B33: Sicilian: Pelikan and Sveshnikov Variations.} 12. Nc2 {[%emt 0:00:04]} O-O {[%emt 0:00:20]} 13. g3 {[%emt 0:00:08]} Rb8 {[%emt 0:00:58] The position is equal.} 14. b3 {[%emt 0:00:13]} a5 {[%emt 0:01:19]} 15. Bg2 {[%emt 0:00:09]} g6 {[%emt 0:00:32]} 16. O-O {[%emt 0:00:15]} Bg7 {[%emt 0:00:18]} 17. Nde3 {[%emt 0:08:19]} Be6 {[%emt 0:12:52]} 18. Qd3 {[%emt 0:04:39]} Qd7 {[%emt 0:07:58]} 19. Rad1 {[%emt 0:02:04]} Rbd8 {[%emt 0:07:34] [#]} 20. Rd2 $146 {[%emt 0:05:42]} ({Predecessor:} 20. a3 bxa3 21. Nxa3 Nd4 22. Nec2 Nxc2 23. Qxc2 Qc6 24. Rd3 Qc5 25. Nb5 a4 26. bxa4 Qxc4 {½-½ Miler,F (1479)-Bem,T (1262) POL-ch U15 Qual 2021 (4)}) 20... f5 {[%emt 0:01:58]} 21. exf5 {[%emt 0:00:46]} gxf5 {[%emt 0:00:21]} 22. Bd5 {[%emt 0:01:47]} f4 {[%emt 0:09:25]} 23. Bxe6+ {[%emt 0:13:48]} (23. Nf5 $5 {[%cal Rd5c6]} Kh8 24. Nxg7 Kxg7 25. Be4 $14) 23... Qxe6 {[%emt 0:00:10]} 24. Qd5 {[%emt 0:00:02]} Qxd5 {[%emt 0:00:38]} 25. Nxd5 {[%emt 0:00:05]} fxg3 {[%emt 0:06:56]} 26. hxg3 {[%emt 0:03:49]} Bh6 {[%emt 0:05:03]} 27. Nde3 {[%emt 0:06:41]} Bxe3 {[%emt 0:02:43]} 28. Nxe3 {[%emt 0:01:11]} Nd4 {[%emt 0:02:13] ...Nf3+ would be deadly.} 29. Kg2 {[%emt 0:00:10]} a4 {[%emt 0:00:44]} 30. Nc2 {[%emt 0:01:59]} Nxc2 {[%emt 0:08:23]} (30... axb3 $2 31. Nxd4 exd4 32. axb3 $18) 31. Rxc2 {[%emt 0:00:11]} axb3 {[%emt 0:00:48]} 32. axb3 $14 {[%emt 0:00:01][%mdl 4096] Endgame KRR-KRR} Ra8 {[%emt 0:00:21]} 33. Rd1 {[%emt 0:01:09]} Rf6 {[%emt 0:02:22]} 34. Rd5 $1 {[%emt 0:00:37]} Rb8 {[%emt 0:06:54]} 35. Rcd2 {[%emt 0:06:23]} Rb6 {[%emt 0:02:18]} 36. c5 {[%emt 0:08:42]} dxc5 {[%emt 0:00:48]} 37. Rxc5 {[%emt 0:00:03]} ({Don't take} 37. Rxe5 Rbd6 38. Rg5+ (38. Rxd6 Rxd6 39. Rg5+ Kh8 $11) 38... Rg6 39. Rxg6+ (39. Rxd6 Rxg5 40. f4 Rg6 $14) 39... Rxg6 $14) 37... Kg7 $2 {[%emt 0:10:07] Loses the game.} (37... Rbd6 $16 {was necessary.} 38. Rxd6 Rxd6) 38. Rxe5 {[%emt 0:00:24]} Rfc6 {[%emt 0:02:01]} 39. Rd4 {[%emt 0:04:48]} Rc3 {[%emt 0:01:08]} 40. Rg4+ {[%emt 0:05:22]} Kf6 {[%emt 0:03:15]} 41. Re3 {[%emt 0:37:19]} Rxe3 {[%emt 0:30:38]} 42. fxe3 $18 {[%emt 0:00:01] KR-KR} Kf5 {[%emt 0:03:44]} 43. Kf3 {[%emt 0:00:22]} Ke5 {[%emt 0:00:54]} (43... Rb8 $16 44. Rh4 Kg6) 44. Rg5+ {[%emt 0:02:04]} Kf6 {[%emt 0:00:03]} (44... Kd6 $16 45. Rh5 Rb7) 45. Kf4 {[%emt 0:00:56]} h6 {[%emt 0:00:41]} (45... Rb7 {keeps fighting.} 46. Re5 h6) 46. Rc5 {[%emt 0:00:23]} Ke6 {[%emt 0:00:43]} 47. Rh5 {[%emt 0:02:50]} Kf7 {[%emt 0:00:08]} 48. e4 {[%emt 0:01:55]} Kg7 {[%emt 0:02:05]} 49. Rd5 {[%emt 0:01:49]} Rf6+ {[%emt 0:01:01]} 50. Rf5 {[%emt 0:01:08] Rxf6 would kill now.} Rb6 {[%emt 0:00:24]} 51. Rc5 {[%emt 0:01:18]} (51. g4 $142) 51... Rf6+ {[%emt 0:00:13]} 52. Ke3 {[%emt 0:00:00]} Rg6 {[%emt 0:00:12]} 53. Rc7+ {[%emt 0:00:03]} Kf8 {[%emt 0:00:04]} 54. Kf4 {[%emt 0:04:36] Strongly threatening Rc5.} Rf6+ {[%emt 0:00:14] [#]} 55. Kg4 $1 {[%emt 0:00:32]} Rg6+ {[%emt 0:00:45] [#]} 56. Kh4 $1 {[%emt 0:00:57]} Re6 {[%emt 0:01:41]} 57. Rc4 {[%emt 0:00:27]} Rb6 {[%emt 0:00:04]} (57... Rg6 $142 58. Rxb4 h5) 58. Kg4 {[%emt 0:00:46]} Kg7 {[%emt 0:01:00]} 59. e5 {[%emt 0:00:57]} Kg6 {[%emt 0:00:36]} 60. Rd4 {[%emt 0:00:23] White wants to mate with Rd6+.} h5+ {[%emt 0:00:33]} 61. Kf4 {[%emt 0:00:10] aiming for Rd6+.} Rb5 {[%emt 0:00:51]} 62. Rd6+ {[%emt 0:00:18]} Kg7 $2 {[%emt 0:00:04]} (62... Kf7 63. Rh6 Rd5) 63. Kf5 {[%emt 0:04:51] Black must now prevent Rd7+.} Rc5 $2 {[%emt 0:00:22]} (63... Rb7 64. Rg6+ Kf8) 64. Rd7+ {[%emt 0:00:30]} Kf8 {[%emt 0:00:34]} 65. Kf6 {[%emt 0:01:24][%cal Rd7d8] White mates.} Ke8 {[%emt 0:00:02]} 66. Rh7 {[%emt 0:01:19]} Rc3 {[%emt 0:00:50]} 67. Rh8+ {[%emt 0:00:59]} Kd7 {[%emt 0:00:06]} 68. e6+ {[%emt 0:00:00][%cal Be5e6,Be6e7][%mdl 32]} ({Stronger than} 68. Rxh5 Rxg3 69. Kf5 (69. e6+ Kd6 $11) 69... Rxb3 $11) 68... Kc7 {[%emt 0:02:10]} 69. e7 {[%emt 0:00:36]} Rf3+ {[%emt 0:00:10]} 70. Kg5 {[%emt 0:00:25] Weighted Error Value: White=0.07 (flawless) /Black=0.17 (very precise)} 1-0

[Event "Lliga Catalana DH 2023"]
[Site "Catalonia"]
[Date "2023.01.28"]
[Round "2.7"]
[White "Arias Boo, Guillermo"]
[Black "Alonso Moyano, Jonathan"]
[Result "0-1"]
[ECO "A25"]
[WhiteElo "2216"]
[BlackElo "2339"]
[Annotator "TA"]
[PlyCount "66"]
[EventDate "2023.01.24"]
[EventType "team-tourn"]
[EventCountry "ESP"]
[SourceTitle "playchess.com"]
[Source "ChessBase"]
[SourceQuality "1"]
[TimeControl "40/5400+30:1800+30"]

{[%evp 10,66,44,49,44,48,45,32,60,57,56,56,97,87,125,114,116,80,135,96,274,287,305,267,289,293,269,312,296,254,238,187,209,185,193,197,275,260,303,227,381,390,368,387,393,326,329,-77,0,0,0,0,0,-8,-9,-29996,-29997,-29997,-182]} 1. c4 e5 2. g3 Nc6 3. Bg2 f5 4. Nc3 Nf6 5. e3 Be7 6. Nge2 O-O {A25: English Opening vs King's Indian with ...Nc6 but without early d3.} 7. d4 d6 8. O-O Qe8 {White is slightly better.} 9. Nd5 Bd8 10. b3 {[#]} g5 $146 ({Predecessor:} 10... a5 11. Bb2 e4 12. Nef4 Nxd5 13. cxd5 Ne7 14. f3 g5 15. Ne6 Nxd5 16. Nxf8 Nxe3 {½-½ Rotstein,A (2465)-Eingorn,V (2575) Metz op 11th 1993}) 11. Bb2 Qg6 12. dxe5 dxe5 13. f4 Re8 (13... gxf4 $142 14. gxf4 (14. exf4 e4 $14) 14... e4) 14. Qc2 h6 $2 (14... gxf4 $16 {is a better defense.} 15. gxf4 (15. exf4 e4 $14) 15... e4) 15. Rad1 $18 gxf4 16. exf4 e4 17. Bxf6 {[%mdl 64] [#] Deflection} Bxf6 18. Nxc7 Be6 19. Nxa8 Rxa8 20. a3 (20. Rd6 $6 Be7 21. Rdd1 Qg7) 20... a5 21. Qc1 (21. Rd6 $6 Be7 22. Rfd1 Bxd6 23. Rxd6 Rd8 24. Rxd8+ Nxd8 $16) 21... h5 22. Kh1 Kf7 (22... a4 {keeps fighting.}) 23. Qe3 (23. Rd6 $6 Be7 $18) 23... Rh8 24. Qb6 a4 $2 (24... Qg4) 25. Qxb7+ (25. bxa4 h4 26. Rd6 (26. Qxb7+ Ne7 $18) 26... hxg3 $18) 25... Ne7 26. Rd6 {[%cal Og2e4] Threatens to win with Bxe4!} (26. bxa4 h4 $18) 26... h4 27. h3 ({Not} 27. bxa4 hxg3 28. h3 Bxc4 $18) 27... hxg3 28. Rc1 $2 ({Resist} 28. bxa4 Bxc4 29. Re1 Kg7 $18) (28. Qa6 $18 Bg7 29. bxa4) 28... Rh4 {The board is on fire.} (28... Qg4 $17 29. Ng1 Qxf4) 29. Qb6 Nc8 $1 {[%csl LRb6,LRd6]} 30. Qc7+ Ne7 $1 {Hoping for ...Qh6.} 31. Rb6 {And now Qd6 would win.} Qh6 $1 {( -> ...Rxh3+)} 32. Qd6 $2 {[%mdl 8192]} (32. Nxg3 $2 {perishes.} Rxh3+ 33. Kg1 Bd4+ 34. Kf1 Bxb6 35. Nxe4 Bxc7 $19) (32. Ng1 $11) 32... Rxh3+ $1 33. Kg1 {[#]} Rh1+ $3 {[%mdl 576] Decoy. Beautiful play by Alonso Moyano!   Weighted Error Value: White=0.42/Black=0.28 (precise)} 0-1

[Event "Lliga Catalana DH 2023"]
[Site "Catalonia"]
[Date "2023.01.24"]
[Round "2.7"]
[White "Ibanez Tarradellas, Eduardo"]
[Black "Aymerich Verdaguer, Eduard"]
[Result "1/2-1/2"]
[ECO "A45"]
[WhiteElo "2179"]
[BlackElo "2208"]
[Annotator "TA"]
[PlyCount "37"]
[EventDate "2023.01.24"]
[EventType "team-tourn"]
[EventCountry "ESP"]
[SourceTitle "playchess.com"]
[Source "ChessBase"]
[SourceQuality "1"]
[TimeControl "40/5400+30:1800+30"]

{[%evp 9,37,6,38,8,29,17,25,9,14,6,16,10,24,5,7,2,8,0,0,0,0,0,0,0,0,0,26,20,7,7]} 1. d4 {[%emt 0:00:01]} Nf6 {[%emt 0:01:50]} 2. Bg5 {[%emt 0:00:31]} Ne4 {[%emt 0:01:28]} 3. Bf4 {[%emt 0:00:21]} d5 {[%emt 0:01:03]} 4. e3 {[%emt 0:00:59]} c5 {[%emt 0:01:41]} 5. Bd3 {[%emt 0:00:18]} Nf6 {[%emt 0:07:10]} 6. c3 {[%emt 0:02:13] A45: Trompowsky Attack.} Nc6 {[%emt 0:00:22]} 7. Nd2 {[%emt 0:01:15]} g6 {[%emt 0:01:52]} 8. h3 {[%emt 0:04:51] White has an edge.} Bg7 {[%emt 0:02:41]} 9. Ngf3 {[%emt 0:00:56]} O-O {[%emt 0:00:30]} 10. O-O {[%emt 0:01:10]} Qb6 {[%emt 0:03:58] [#]} 11. Qb3 $146 {[%emt 0:06:39]} ({Predecessor:} 11. b3 Nd7 12. Rb1 a5 13. Qc2 cxd4 14. Nxd4 Na7 15. N4f3 e5 16. Bg3 e4 17. Nxe4 dxe4 18. Bxe4 {0-1 Zimmermann,J (1610)-Peschke,I (2198) PER LIPEAD40 pr-44 email 2012}) 11... c4 {[%emt 0:15:01]} 12. Qxb6 {[%emt 0:00:06]} axb6 {[%emt 0:00:03]} 13. Bc2 {[%emt 0:00:11]} Bf5 {[%emt 0:00:27]} 14. Bxf5 {[%emt 0:02:22]} gxf5 {[%emt 0:00:02]} 15. Ne5 {[%emt 0:01:19]} b5 {[%emt 0:03:03]} 16. a3 {[%emt 0:02:36]} Nxe5 {[%emt 0:09:59]} 17. Bxe5 {[%emt 0:00:49]} Ne4 {[%emt 0:03:32]} 18. Bxg7 {[%emt 0:01:43]} Kxg7 {[%emt 0:00:07]} 19. Nxe4 {[%emt 0:01:53] A rather calm draw.   Weighted Error Value: White=0.08 (flawless) /Black=0.10 (very precise)} 1/2-1/2